{"text_format":"3","workbook":"xlsx","n_sheets":7,"sheets":["Lunedì","Martedì","Mercoledì","Giovedì","Venerdì","Sabato","Domenica"],"not_rendered":{"defined_names":21},"read":"whole","date_system":"1900"}

{"sheet":"Lunedì","index":0,"n_rows":10,"n_cols":13,"rows_kept":10,"merged":[[0,1,0,4],[1,2,1,4],[2,2,2,4]]}
[null,"Pianificazione dei turni"]
[null,"Per la settimana del: ","Data"]
[null,"Nome reparto: ","Nome"]
[]
[null,"LUNEDÌ","7:00","8:00","9:00","10:00","11:00","12.00","13:00","14:00","15:00","Malattia?","TOTALE"]
[null,"Nome 1","manager","manager","manager","manager","manager","manager","manager","manager","manager",null,{"$f":"COUNTIF(Lunedì[[#This Row],[7:00]:[15:00]],\"*\")","v":9}]
[null,"Nome 2",null,"cassiere","cassiere","cassiere","cassiere",{"$nulls":5},{"$f":"COUNTIF(Lunedì[[#This Row],[7:00]:[15:00]],\"*\")","v":4}]
[null,"Nome 3",null,"reception","reception","reception","reception ","reception","reception","reception",null,null,{"$f":"COUNTIF(Lunedì[[#This Row],[7:00]:[15:00]],\"*\")","v":7}]
[null,"Nome 4",null,"reception","reception","reception","reception ","reception","reception","reception",null,null,{"$f":"COUNTIF(Lunedì[[#This Row],[7:00]:[15:00]],\"*\")","v":7}]
[null,"Nome 5",{"$nulls":9},"Malattia",{"$f":"COUNTIF(Lunedì[[#This Row],[7:00]:[15:00]],\"*\")","v":0}]

{"sheet":"Martedì","index":1,"n_rows":10,"n_cols":13,"rows_kept":10,"merged":[[0,1,0,4],[1,2,1,4],[2,2,2,4]]}
[null,"Pianificazione dei turni"]
[null,"Per la settimana del: ",{"$f":"Lunedì!C2","v":"Data"}]
[null,"Nome reparto: ",{"$f":"Lunedì!C3","v":"Nome"}]
[]
[null,"MARTEDÌ","7:00","8:00","9:00","10:00","11:00","12.00","13:00","14:00","15:00","Malattia?","TOTALE"]
[null,"Nome 1","manager","manager","manager","manager","manager","manager","manager","manager","manager",null,{"$f":"COUNTIF(Martedì[[#This Row],[7:00]:[15:00]],\"*\")","v":9}]
[null,"Nome 2",null,"cassiere","cassiere","cassiere","cassiere",{"$nulls":5},{"$f":"COUNTIF(Martedì[[#This Row],[7:00]:[15:00]],\"*\")","v":4}]
[null,"Nome 3",null,"reception","reception","reception","reception ","reception","reception","reception",null,null,{"$f":"COUNTIF(Martedì[[#This Row],[7:00]:[15:00]],\"*\")","v":7}]
[null,"Nome 4",null,"reception","reception","reception","reception ","reception","reception","reception",null,null,{"$f":"COUNTIF(Martedì[[#This Row],[7:00]:[15:00]],\"*\")","v":7}]
[null,"Nome 5",{"$nulls":9},"Malattia",{"$f":"COUNTIF(Martedì[[#This Row],[7:00]:[15:00]],\"*\")","v":0}]

{"sheet":"Mercoledì","index":2,"n_rows":10,"n_cols":13,"rows_kept":10,"merged":[[0,1,0,4],[1,2,1,4],[2,2,2,4]]}
[null,"Pianificazione dei turni"]
[null,"Per la settimana del: ",{"$f":"Lunedì!C2","v":"Data"}]
[null,"Nome reparto: ",{"$f":"Lunedì!C3","v":"Nome"}]
[]
[null,"MERCOLEDÌ","7:00","8:00","9:00","10:00","11:00","12.00","13:00","14:00","15:00","Malattia?","TOTALE"]
[null,"Nome 1","manager","manager","manager","manager","manager","manager","manager","manager","manager",null,{"$f":"COUNTIF(Mercoledì[[#This Row],[7:00]:[15:00]],\"*\")","v":9}]
[null,"Nome 2",null,"cassiere","cassiere","cassiere","cassiere",{"$nulls":5},{"$f":"COUNTIF(Mercoledì[[#This Row],[7:00]:[15:00]],\"*\")","v":4}]
[null,"Nome 3",null,"reception","reception","reception","reception ","reception","reception","reception",null,null,{"$f":"COUNTIF(Mercoledì[[#This Row],[7:00]:[15:00]],\"*\")","v":7}]
[null,"Nome 4",null,"reception","reception","reception","reception ","reception","reception","reception",null,null,{"$f":"COUNTIF(Mercoledì[[#This Row],[7:00]:[15:00]],\"*\")","v":7}]
[null,"Nome 5",{"$nulls":9},"Malattia",{"$f":"COUNTIF(Mercoledì[[#This Row],[7:00]:[15:00]],\"*\")","v":0}]

{"sheet":"Giovedì","index":3,"n_rows":10,"n_cols":13,"rows_kept":10,"merged":[[0,1,0,4],[1,2,1,4],[2,2,2,4]]}
[null,"Pianificazione dei turni"]
[null,"Per la settimana del: ",{"$f":"Lunedì!C2","v":"Data"}]
[null,"Nome reparto: ",{"$f":"Lunedì!C3","v":"Nome"}]
[]
[null,"GIOVEDÌ","7:00","8:00","9:00","10:00","11:00","12.00","13:00","14:00","15:00","Malattia?","TOTALE"]
[null,"Nome 1","manager","manager","manager","manager","manager","manager","manager","manager","manager",null,{"$f":"COUNTIF(Giovedì[[#This Row],[7:00]:[15:00]],\"*\")","v":9}]
[null,"Nome 2",null,"cassiere","cassiere","cassiere","cassiere",{"$nulls":5},{"$f":"COUNTIF(Giovedì[[#This Row],[7:00]:[15:00]],\"*\")","v":4}]
[null,"Nome 3",null,"reception","reception","reception","reception ","reception","reception","reception",null,null,{"$f":"COUNTIF(Giovedì[[#This Row],[7:00]:[15:00]],\"*\")","v":7}]
[null,"Nome 4",null,"reception","reception","reception","reception ","reception","reception","reception",null,null,{"$f":"COUNTIF(Giovedì[[#This Row],[7:00]:[15:00]],\"*\")","v":7}]
[null,"Nome 5",{"$nulls":9},"Malattia",{"$f":"COUNTIF(Giovedì[[#This Row],[7:00]:[15:00]],\"*\")","v":0}]

{"sheet":"Venerdì","index":4,"n_rows":10,"n_cols":13,"rows_kept":10,"merged":[[0,1,0,4],[1,2,1,4],[2,2,2,4]]}
[null,"Pianificazione dei turni"]
[null,"Per la settimana del: ",{"$f":"Lunedì!C2","v":"Data"}]
[null,"Nome reparto: ",{"$f":"Lunedì!C3","v":"Nome"}]
[]
[null,"VENERDÌ","7:00","8:00","9:00","10:00","11:00","12.00","13:00","14:00","15:00","Malattia?","TOTALE"]
[null,"Nome 1","manager","manager","manager","manager","manager","manager","manager","manager","manager",null,{"$f":"COUNTIF(Venerdì[[#This Row],[7:00]:[15:00]],\"*\")","v":9}]
[null,"Nome 2",null,"cassiere","cassiere","cassiere","cassiere",{"$nulls":5},{"$f":"COUNTIF(Venerdì[[#This Row],[7:00]:[15:00]],\"*\")","v":4}]
[null,"Nome 3",null,"reception","reception","reception","reception ","reception","reception","reception",null,null,{"$f":"COUNTIF(Venerdì[[#This Row],[7:00]:[15:00]],\"*\")","v":7}]
[null,"Nome 4",null,"reception","reception","reception","reception ","reception","reception","reception",null,null,{"$f":"COUNTIF(Venerdì[[#This Row],[7:00]:[15:00]],\"*\")","v":7}]
[null,"Nome 5",{"$nulls":9},"Malattia",{"$f":"COUNTIF(Venerdì[[#This Row],[7:00]:[15:00]],\"*\")","v":0}]

{"sheet":"Sabato","index":5,"n_rows":10,"n_cols":13,"rows_kept":10,"merged":[[0,1,0,4],[1,2,1,4],[2,2,2,4]]}
[null,"Pianificazione dei turni"]
[null,"Per la settimana del: ",{"$f":"Lunedì!C2","v":"Data"}]
[null,"Nome reparto: ",{"$f":"Lunedì!C3","v":"Nome"}]
[]
[null,"SABATO","7:00","8:00","9:00","10:00","11:00","12.00","13:00","14:00","15:00","Malattia?","TOTALE"]
[null,"Nome 1","manager","manager","manager","manager","manager","manager","manager","manager","manager",null,{"$f":"COUNTIF(Sabato[[#This Row],[7:00]:[15:00]],\"*\")","v":9}]
[null,"Nome 2",null,"cassiere","cassiere","cassiere","cassiere",{"$nulls":5},{"$f":"COUNTIF(Sabato[[#This Row],[7:00]:[15:00]],\"*\")","v":4}]
[null,"Nome 3",null,"reception","reception","reception","reception ","reception","reception","reception",null,null,{"$f":"COUNTIF(Sabato[[#This Row],[7:00]:[15:00]],\"*\")","v":7}]
[null,"Nome 4",null,"reception","reception","reception","reception ","reception","reception","reception",null,null,{"$f":"COUNTIF(Sabato[[#This Row],[7:00]:[15:00]],\"*\")","v":7}]
[null,"Nome 5",{"$nulls":9},"Malattia",{"$f":"COUNTIF(Sabato[[#This Row],[7:00]:[15:00]],\"*\")","v":0}]

{"sheet":"Domenica","index":6,"n_rows":10,"n_cols":13,"rows_kept":10,"merged":[[0,1,0,4],[1,2,1,4],[2,2,2,4]]}
[null,"Pianificazione dei turni"]
[null,"Per la settimana del: ",{"$f":"Lunedì!C2","v":"Data"}]
[null,"Nome reparto: ",{"$f":"Lunedì!C3","v":"Nome"}]
[]
[null,"DOMENICA","7:00","8:00","9:00","10:00","11:00","12.00","13:00","14:00","15:00","Malattia?","TOTALE"]
[null,"Nome 1","manager","manager","manager","manager","manager","manager","manager","manager","manager",null,{"$f":"COUNTIF(Domenica[[#This Row],[7:00]:[15:00]],\"*\")","v":9}]
[null,"Nome 2",null,"cassiere","cassiere","cassiere","cassiere",{"$nulls":5},{"$f":"COUNTIF(Domenica[[#This Row],[7:00]:[15:00]],\"*\")","v":4}]
[null,"Nome 3",null,"reception","reception","reception","reception ","reception","reception","reception",null,null,{"$f":"COUNTIF(Domenica[[#This Row],[7:00]:[15:00]],\"*\")","v":7}]
[null,"Nome 4",null,"reception","reception","reception","reception ","reception","reception","reception",null,null,{"$f":"COUNTIF(Domenica[[#This Row],[7:00]:[15:00]],\"*\")","v":7}]
[null,"Nome 5",{"$nulls":9},"Malattia",{"$f":"COUNTIF(Domenica[[#This Row],[7:00]:[15:00]],\"*\")","v":0}]